Cogmind - Beta 15 @@@ ROGUE MODE // 2025.08.02 @ 16:44:16 Player: SirusTheMadDJ Result: Destroyed by 7M-6I4(R) with Subdweller Machine Gun Performance ------------- Evolutions (0) 0 Regions Visited (2) 400 Robots Destroyed (21) 105 Value Destroyed (436) 436 Prototype IDs (0) 0 Alien Tech Used (0) 0 Bonus (0) 0 TOTAL SCORE: 941 Bonus ------- None Cogmind --------- Core Integrity 0/250 Matter 280/300 Energy 68/100 System Corruption 0% Temperature Cool (0) Movement Rolling (90) Location -10/Subcaves Parts ------- > --- POWER (1) -------- (None) > --- PROPULSION (2) --- Wheel Compact Wheel > --- UTILITY (2) ------ Large Storage Unit Structural Scanner > --- WEAPON (2) ------- (None) > --- INVENTORY (15) --- Ion Engine Subdweller Power Source Huge Storage Unit Terrain Scanner Tractor Beam EM Pulse Gun Datajack Peak State ------------ > --- POWER ------------ Light Ion Engine > --- PROPULSION ------- Aluminum Leg Aluminum Leg > --- UTILITY ---------- Large Storage Unit Structural Scanner > --- WEAPON ----------- Beam Cannon Light Assault Rifle > --- INVENTORY -------- Ion Engine Aluminum Leg Aluminum Leg Wheel Compact Wheel Huge Storage Unit Terrain Scanner Tractor Beam EM Pulse Gun Datajack [Rating: 8] Favorites ----------- Power Ion Engine Engine Ion Engine Propulsion Aluminum Leg Leg Aluminum Leg Wheel Compact Wheel Utility Structural Scanner Device Structural Scanner Storage Large Storage Unit Weapon Light Assault Rifle Energy Cannon Beam Cannon Ballistic Gun Light Assault Rifle Build | -11 -10 -10 ------- Run | Yrd Mat Sub Slots Evolved . | . . . Power . | . . . Propulsion . | . . . Utility . | . . . Weapon . | . . . Parts Attached 20 | 6 11 3 Power 5 | 1 4 . Engine 5 | 1 4 . Core . | . . . Reactor . | . . . Propulsion 9 | 2 4 3 Treads . | . . . Leg 7 | 2 4 1 Wheel 2 | . . 2 Hover . | . . . Flight . | . . . Utility 3 | 1 2 . Device 1 | . 1 . Storage 2 | 1 1 . Processor . | . . . Hackware . | . . . Protection . | . . . Artifact . | . . . Weapon 3 | 2 1 . Energy Gun . | . . . Energy Cannon 1 | . 1 . Ballistic Gun 2 | 2 . . Ballistic Cannon . | . . . Launcher . | . . . Special Weapon . | . . . Impact Weapon . | . . . Slashing Weapon . | . . . Piercing Weapon . | . . . Special Melee Weapon . | . . . Unidentified Prototypes . | . . . Parts Lost 7 | . 1 6 Power 1 | . . 1 Propulsion 4 | . 1 3 Utility . | . . . Weapon 2 | . . 2 Highest Loss Streak 6 | . 1 6 To Critical Strikes . | . . . Average Backups 7 | 1 7 9 Power 1 | . 1 1 Propulsion 2 | . 2 2 Utility 2 | . 2 3 Weapon . | . 1 1 Tool/Special . | . . . Unused Backups 7 | . . 7 Power 2 | . . 2 Propulsion . | . . . Utility 3 | . . 3 Weapon 1 | . . 1 Tool/Special 1 | . . 1 Average Slot Usage (%) 98 | . 98 95 Engine 13 | . 14 12 Leg 27 | . 27 26 Device 13 | . 13 14 Storage 14 | . 14 14 Energy Cannon 11 | . 10 13 Ballistic Gun 16 | . 17 12 Peak Build Rating 8 | 6 8 8 Average Rating 6 | 4 6 7 On Entrance 4 | . 6 7 Naked Turns . | . . . Heaviest Build 30 | 13 30 30 Greatest Support 20 | 20 20 20 Greatest Overweight (x) 2 | . 2 2 Average Overweight (x) . | . . 1 Largest Inventory Capacity 15 | 8 15 15 Average Capacity 13 | 6 13 15 Most Carried 10 | 4 10 10 Average Carried 7 | 1 7 9 Final Capacity 15 | 8 15 15 Final Carried 9 | 4 9 7 Class Distribution -------------------- 100% | Mutant Dominant Class ---------------- Mutant | -10/Materials Mutant | -10/Subcaves Resources | -11 -10 -10 ----------- Run | Yrd Mat Sub Matter Collected 503 | 185 302 16 Remotely . | . . . Salvage Created 664 | . 606 58 Parts 45 | . 39 6 Haulers Intercepted 1 | . 1 . Recyclers Shooed . | . . . Parts Field Recycled . | . . . Retrieved Matter . | . . . Parts Self-Destructed 8 | . . 8 Prevented . | . . . Kills | -11 -10 -10 ------- Run | Yrd Mat Sub Combat Hostiles Destroyed 16 | . 13 3 Guns 8 | . 6 2 Cannons 8 | . 7 1 Classes Destroyed 7 | . 6 1 Worker 1 | . 1 . Hauler 1 | . 1 . Recycler 1 | . 1 . Watcher 2 | . 2 . Swarmer 7 | . 5 2 Grunt 8 | . 8 . Subdweller 1 | . . 1 Best Kill Streak 4 | . 4 2 Combat Bots Only 3 | . 3 2 Max Kills in Single Turn 2 | . 2 1 Gunslinging . | . . . Exploded . | . . . Melee . | . . . Uniques/NPCs Destroyed . | . . . Combat | -11 -10 -10 -------- Run | Yrd Mat Sub Hostile Shots Fired 116 | . 70 46 Missed 34 | . 14 20 Hits 82 | . 56 26 Projectile 82 | . 56 26 AOE 5 | . . 5 Damage Taken 1166 | . 493 673 Core 254 | . 81 173 Absorbed by Shields . | . . . Core Remaining (%) 100 | 100 . . Volleys Fired 69 | . 53 16 Largest 2 | . 2 2 Hottest 80 | . 80 80 Shots Fired 138 | . 106 32 Gun 92 | . 76 16 Cannon 46 | . 30 16 Launcher . | . . . Special . | . . . Kinetic 92 | . 76 16 Thermal 46 | . 30 16 Explosive . | . . . Electromagnetic . | . . . Robot Hit Streak 7 | . 7 4 Robot Miss Streak 5 | . 4 5 Penetration Max . | . . . Secondary Targets 1 | . 1 . Max Gunslinging Chain 1 | . 1 . Shots Hit Robots 65 | . 49 16 Core Hits 33 | . 28 5 Critical Kills . | . . . Critical Parts Destroyed . | . . . Critical Strikes . | . . . Melee Attacks . | . . . Impact . | . . . Slashing . | . . . Piercing . | . . . Sneak Attacks . | . . . Combat Hostiles . | . . . Follow-up Attacks . | . . . Damage Inflicted 811 | . 669 142 Guns 410 | . 355 55 Cannons 401 | . 314 87 Explosions . | . . . Melee . | . . . Ramming . | . . . Kinetic 410 | . 355 55 Thermal 401 | . 314 87 Explosive . | . . . Electromagnetic . | . . . Impact . | . . . Slashing . | . . . Piercing . | . . . Highest Corruption . | . . . Average Corruption . | . . . Corruption Purged . | . . . Corruption Blocked . | . . . Overload Shots . | . . . Overflow Damage . | . . . Projectiles . | . . . Explosions . | . . . Melee . | . . . Knockbacks . | . . . Impact . | . . . Kinetic . | . . . Secondary . | . . . Self-Inflicted Damage . | . . . Shots . | . . . Rammed . | . . . Targets Rammed . | . . . Kicked . | . . . Crushed . | . . . Highest Temperature 147 | . 147 6 Average Temperature 52 | . 53 6 Received Heat Transfer 141 | . 111 30 Siege Activations . | . . . Martial Activations . | . . . Shielding Activations . | . . . Robots Disrupted . | . . . Combat Hostiles . | . . . Robots Corrupted . | . . . Combat Hostiles . | . . . Parts Fried . | . . . Impact Corruptions . | . . . Robots Melted . | . . . Combat Hostiles . | . . . Parts Melted 1 | . . 1 Heat Transferred 851 | . 666 185 Parts Sabotaged . | . . . Parts Stolen . | . . . Parts Stripped . | . . . Power Chain Reactions . | . . . Alert | -11 -10 -10 ------- Run | Yrd Mat Sub Maximum Alert Level . | . . . Low Security (%) 100 | 100 100 . Level 1 . | . . . Level 2 . | . . . Level 3 . | . . . Level 4 . | . . . Level 5 . | . . . High Security . | . . . Max Security . | . . . Peak Influence 87 | . 87 . Initial . | . . . Average 22 | . 23 . Influence Increases 436 | . 386 50 Destroy 0b10 Robot/C 300 | . 260 40 Destroy 0b10 Robot/NC 25 | . 25 . Destroy Leader 66 | . 56 10 Partial Spotted 30 | . 30 . Lose Combat Pursuer 15 | . 15 . Influence Decreases 436 | . 352 84 Entered New Map 17 | . . 17 Time Decay 399 | . 352 47 Lost Part 20 | . . 20 Squads Dispatched 2 | . 2 . Investigation 1 | . 1 . Extermination . | . . . Reinforcement 1 | . 1 . Assault . | . . . Garrison . | . . . Intercept . | . . . Searches Triggered . | . . . Construction Impeded . | . . . Haulers Reinforced . | . . . Active Scanning Responses . | . . . Cargo Convoy Interrupts . | . . . Stealth | -11 -10 -10 --------- Run | Yrd Mat Sub Distress Signals 1 | . 1 . Communications Jammed . | . . . Distress Signals . | . . . Times Spotted 30 | . 23 7 Peak Tracking Total 4 | . 4 4 Tactical Retreats 1 | . 1 . Traps | -11 -10 -10 ------- Run | Yrd Mat Sub Traps Triggered 2 | . 1 1 Indirectly . | . . . Trap Hack Attempts . | . . . Triggered . | . . . Disarmed . | . . . Reprogrammed . | . . . Reused . | . . . Traps Extracted . | . . . Installed . | . . . Triggered . | . . . Machines | -11 -10 -10 ---------- Run | Yrd Mat Sub Machines Disabled . | . . . Max in Single Turn . | . . . Machines Repaired . | . . . Machines Dismantled . | . . . Machines Sabotaged . | . . . Overloaded Fab Kills . | . . . Hacking | -11 -10 -10 --------- Run | Yrd Mat Sub Machines Accessed 2 | . 2 . Terminals 1 | . 1 . Fabricators . | . . . Repair Stations . | . . . Recycling Units 1 | . 1 . Scanalyzers . | . . . Garrison Access . | . . . Total Hacks 6 | . 6 . Successful 2 | . 2 . Failed 4 | . 4 . Catastrophic . | . . . Database Lockouts . | . . . Manual 2 | . 2 . Terminals 2 | . 2 . Fabricators . | . . . Repair Stations . | . . . Recycling Units 4 | . 4 . Scanalyzers . | . . . Garrison Access . | . . . Terminal Hacks . | . . . Fabricator Hacks . | . . . Repair Station Hacks . | . . . Recycling Unit Hacks 2 | . 2 . Process 1 | . 1 . Report Inventory 1 | . 1 . Scanalyzer . | . . . Garrison Access Hacks . | . . . Unauthorized Hacks . | . . . Terminals . | . . . Fabricators . | . . . Repair Stations . | . . . Recycling Units . | . . . Scanalyzers . | . . . Garrison Access . | . . . Data Cores Recovered . | . . . Used . | . . . Hacking Detections 1 | . 1 . Full Trace Events . | . . . Feedback Events . | . . . Feedback Blocked . | . . . Robot Schematics Acquired . | . . . Robots Built . | . . . Authchips . | . . . Time . | . . . Total Robot Build Rating . | . . . Part Schematics Acquired . | . . . Parts Built . | . . . Authchips . | . . . Time . | . . . Total Part Build Rating . | . . . Parts Repaired . | . . . Time . | . . . Parts Recycled . | . . . Recycled Matter 44 | . 44 . Retrieved Matter . | . . . Retrieved Components . | . . . Parts Scanalyzed . | . . . Part Schematics Acquired . | . . . Parts Damaged . | . . . Bothacking | -11 -10 -10 ------------ Run | Yrd Mat Sub Used RIF Installer . | . . . Robots Hacked . | . . . Non-combat . | . . . Combat . | . . . Robot Hacks Applied . | . . . Relay Couplers Released . | . . . Fabnet Peak Effective % . | . . . Robots Rewired . | . . . Allies Hacked . | . . . Hacks Repelled . | . . . Allies | -11 -10 -10 -------- Run | Yrd Mat Sub Total Allies . | . . . Largest Group . | . . . Highest-Rated Group . | . . . Highest-Rated Ally . | . . . Total Orders . | . . . Ally Attacks . | . . . Total Damage . | . . . Kills . | . . . Allies Corrupted . | . . . Allies Melted . | . . . Intel | -11 -10 -10 ------- Run | Yrd Mat Sub Active Infowar (turns) 1898 | . 1495 403 Structural 1898 | . 1495 403 Robot Analysis Total . | . . . Derelict Logs Recovered . | . . . Drone Launches . | . . . Drone Recoveries . | . . . Exploration | -11 -10 -10 ------------- Run | Yrd Mat Sub Turns Passed 2035 | 66 1566 403 Spaces Moved 1025 | 46 795 184 Core 2 | 2 . . Treads . | . . . Legs 1023 | 44 795 184 Wheels . | . . . Hover . | . . . Flight . | . . . Fastest Speed 50 | 50 120 190 Average Speed 173 | 116 172 192 Slowest Speed 260 | 120 260 260 Overloaded Moves . | . . . Propulsion Burnouts . | . . . Robots Hopped . | . . . Potential Cave-ins . | . . . Cave-ins Triggered . | . . . Exploration Rate (%) 40 | 4 96 20 Regions Visited 2 Branch Regions 1 Pre-discovered Areas . | . . . Known Exits Taken . | . . . Unknown Exits Taken 2 | 1 1 . Scrap Searched 1 | . . 1 Spaces Dug . | . . . Terrain Destroyed . | . . . Melee . | . . . Projectile . | . . . AOE . | . . . Terrain Rammed . | . . . Walls Destroyed . | . . . Machines Disabled . | . . . Actions | -11 -10 -10 --------- Run | Yrd Mat Sub Total 1151 | 55 892 204 Wait 17 | . 17 . Move 1023 | 45 794 184 Hop . | . . . Pick Up 13 | 4 8 1 Fast Attach 9 | 6 3 . Attach 3 | . . 3 Detach . | . . . Swap 8 | . 8 . Drop 9 | . 9 . Fire 69 | . 53 16 Melee . | . . . Ram . | . . . Kick . | . . . Crush . | . . . Escape Stasis . | . . . Rewire . | . . . Trap . | . . . Miscellaneous . | . . . Route ------- -11/Scrapyard -10/Materials (discovered 5 exits: [*Mat x3] / [*Min] / [*Sub]) -10/Subcaves (discovered 2 exits: [*Mat] / [*Scr]) History --------- Turn | Location | Event 4 | -11/Scrapyard | Discovered new exit (range 16) 67 | -11/Scrapyard | Entered Materials 189 | -10/Materials | Discovered new exit (range 3) 311 | -10/Materials | Build established: Mutant 541 | -10/Materials | Discovered new exit (range 16) 1017 | -10/Materials | Discovered new exit (range 3) 1086 | -10/Materials | Discovered new exit (range 10) 1376 | -10/Materials | Discovered new exit (range 10) 1633 | -10/Materials | Entered Subcaves 1634 | -10/Subcaves | Approached by a straggling Scientist 1699 | -10/Subcaves | Scientist uncovered a shortcut to Scraptown 1923 | -10/Subcaves | Discovered new exit (range 13) 2017 | -10/Subcaves | Core integrity fell below 50% 2029 | -10/Subcaves | Core integrity fell below 20% 2032 | -10/Subcaves | Ambushed by Subdweller buried in earth 2036 | -10/Subcaves | Destroyed by 7M-6I4(R) with Subdweller Machine Gun Last Messages --------------- S-10 Pest destroyed. Lgt. Ion Engine fries itself beyond repair. S-10 Pest destroyed. Subatomizers dissect the Lgt. Assault Rifle. Acquired 3 matter. Lgt. Assault Rifle fries itself beyond repair. Acquired 1 matter. Aluminum Leg destroyed. Sub. Monowheel melted. 2S-UQ3(R) destroyed. Subatomizers dissect the Sub. Laser. Acquired 1 matter. Subatomizers dissect the Sub. Laser. Ion Engine destroyed. Lgt. Assault Rifle destroyed. Acquired 8 matter. Beam Cannon destroyed. Subatomizers dissect the Sub. Laser. Aluminum Leg destroyed. 7M-6I4(R): "ARGHSUB!" Map ----- +----------------------------------------------------+ | ??????#### ##### ####????????????????? | | ???????### ## ###?????????????????? | | ???????## ###??????????????????? | | ???????### ## ## ####??????????????????? | | ???????#### ###### ######???????????????????? | | ????????#### ##### ######????????????????????? | | ?????????## ##### ######????????????????????? | | ????????#### #### ##????????????????????? | | ??????##### ## ##????????????????????? | | ??????#### ######?????????????????? | | ??????## ### ####????????????????? | | ??????## ### ###????????????????? | | ??????### # ###? ##????????????????? | | ??????### ##### #### ##????????????????? | | ??????## ###### ### ###????????????????? | | ??????### ####### ## ####???????????????? | | ?????#### ####### ## ###???????????????? | | ?????### #### ### ##???????????????? | | ?????## ### ### ##???????????????? | | ?????## # ##???????????????? | | ?????### > ####???????????????? | | ?????## # #####???????????????? | | ?????### ## # ## ### ;######??????????????? | | ?????### ### ###### ;; ;;#######????????????? | | ?????## ## ##### ####????????????? | | ?????#### ?######?### @ ###???????????? | | ?????#### ?######?## R ;####??????????? | | ???????## ????????## #########????? | | ???????## ????????## #########???? | | ???????### ???????? #;# ## # ###???? | | ???????## ??????## #; # ???? | | ?????????? ??????## RR &&[ # ""? | | ?????????? ???????### ; # ##R &%""" ##?? | | ?????????? ???????#### # # #######&"& " ##?? | | ???????????????????### #############" ##?? | | ????????????????????## #####???###### < ? | | ???????????????????? ??????????###### | | ??????????????????? ??????????????? | | ?????????????????? ##???????????????? # | | ????????????????? ##????????????????? ## | | ????????????????? ###????????????????? ## | | ????????????????? ###????????????????? | | ??????????????????? ??????????????????????? | | ?????????????????????? #?????????????????????? | | ???????????????????????? ##?????????????????????? | | ????????????????????????? ##?????????????????????? | | ?????????????????????????????????????????????????? | | ?????????????????????????????????????????????????? | | ?????????????????????????????????????????????????? | | ?????????????????????????????????????????????????? | +----------------------------------------------------+ Best States ------------- Heat Dissipation 25 Energy Generation 10 Energy Capacity 250 Matter Stores 300 Matter Capacity 300 Sight Range 16 Terrain Scan Density 10 Evasion (%) 55 Item Schematics ----------------- None Robot Schematics ------------------ None Fabricated ------------ Nothing Repaired ---------- Nothing Alien Tech Used ----------------- None Achievements -------------- None Challenges ------------ None Game ------ Seed CoolantFissionCycler Manual? 0 Play Time 00:13:18 Cumulative 16.6 hours Start 2025.08.02 @ 16:32:57 End 2025.08.02 @ 16:44:16 Sessions 1 Manual Loads 0 Difficulty Rogue Special Mode None Game No. 38 Rogue 38 Adventurer 0 Explorer 0 Win Type - Total 0 Types 0/0/0/0/0/0/0/0/0/0 Lore% 13 Gallery% 17 Achievement% 17 Wizard Run 0 Options --------- Layout 1 ASCII 0 Keyboard 0 Movement Mouse Keybinds 0 Fullscreen 1 Font 24/Smallcaps Map View 50x35 Zoom Use 0% Tactical HUD 0 Map Filters NONE Filters NONE Steam 1 RUN: 8b237166-2f53-47ba-ab64-3f80bcf6bcbc